Cogmind - Beta 9.3 @@@ ROGUE MODE // 2019.12.20 @ 14:28:14 // Winter2019/RPGLIKE Player: Cassie Rose Result: Destroyed by Y-45 Defender with Beam Rifle Performance ------------- Evolutions (1) 500 Regions Visited (2) 400 Robots Destroyed (34) 170 Value Destroyed (633) 633 Prototype IDs (0) 0 Alien Tech Used (0) 0 Bonus (0) 0 TOTAL SCORE: 1703 Bonus ------- None Cogmind --------- Core Integrity 0/650 Matter 283/300 Energy 304/310 System Corruption 0% Temperature Cool (38) Movement Flying (37) Location -9/Materials Parts ------- > --- POWER (2) -------- Ion Engine Light Nuclear Core > --- PROPULSION (2) --- Flight Unit Flight Unit > --- UTILITY (4) ------ Improved Heat Sink Structural Scanner Improved Terrain Scanner Seismic Analyzer > --- WEAPON (2) ------- EM Pulse Gun EM Pulse Gun > --- INVENTORY (0) ---- (None) Peak State ------------ > --- POWER ------------ Ion Engine Light Nuclear Core > --- PROPULSION ------- Flight Unit Flight Unit > --- UTILITY ---------- Improved Heat Sink Structural Scanner Improved Terrain Scanner Seismic Analyzer > --- WEAPON ----------- EM Pulse Gun EM Pulse Gun > --- INVENTORY -------- (None) [Rating: 15] Favorites ----------- Power Ion Engine Engine Ion Engine Power Core Light Nuclear Core Propulsion Flight Unit Wheel Wheel Flight Unit Flight Unit Utility Improved Terrain Scanner Device Improved Terrain Scanner Processor Seismic Analyzer Weapon Assault Rifle Energy Gun EM Pulse Gun Ballistic Gun Assault Rifle Build | -11 -10 -9 ------- Run | Scr Mat Mat Slots Evolved 6 | 4 1 1 Power 1 | 1 . . Propulsion 1 | 1 . . Utility 3 | 1 1 1 Weapon 1 | 1 . . Parts Attached 22 | 8 13 1 Power 3 | 2 1 . Engine 2 | 2 . . Core 1 | . 1 . Reactor . | . . . Propulsion 6 | 2 4 . Treads . | . . . Leg . | . . . Wheel 2 | 2 . . Hover . | . . . Flight 4 | . 4 . Utility 5 | 2 2 1 Device 4 | 1 2 1 Storage . | . . . Processor 1 | 1 . . Hackware . | . . . Protection . | . . . Artifact . | . . . Weapon 8 | 2 6 . Energy Gun 2 | . 2 . Energy Cannon . | . . . Ballistic Gun 6 | 2 4 . Ballistic Cannon . | . . . Launcher . | . . . Special Weapon . | . . . Impact Weapon . | . . . Slashing Weapon . | . . . Piercing Weapon . | . . . Special Melee Weapon . | . . . Unidentified Prototypes . | . . . Parts Lost . | . . . Power . | . . . Propulsion . | . . . Utility . | . . . Weapon . | . . . Highest Loss Streak . | . . . Average Slot Usage (%) 98 | . 97 100 Engine 15 | . 16 10 Core 7 | . 6 10 Wheel 4 | . 5 . Flight 16 | . 15 20 Device 18 | . 17 29 Processor 11 | . 11 10 Energy Gun 7 | . 4 20 Ballistic Gun 15 | . 18 . Naked Turns . | . . . Heaviest Build 17 | 12 16 17 Greatest Support 46 | 46 46 28 Greatest Overweight (x) . | . . . Average Overweight (x) . | . . . Largest Inventory Capacity . | . . . Average Capacity . | . . . Most Carried . | . . . Average Carried . | . . . Final Capacity . | . . . Final Carried . | . . . Class Distribution -------------------- 48% | Scavenger-Mutant 39% | Mutant 11% | Scavenger-Scout Dominant Class ---------------- Scavenger-Mutant | -10/Materials Scavenger-Scout | -9/Materials Resources | -11 -10 -9 ----------- Run | Scr Mat Mat Matter Collected 859 | 320 436 103 Remotely . | . . . Salvage Created 858 | 115 578 165 Parts 80 | 5 53 22 Haulers Intercepted 1 | . 1 . Recyclers Shooed . | . . . Parts Field Recycled . | . . . Retrieved Matter . | . . . Parts Self-Destructed . | . . . Prevented . | . . . Kills | -11 -10 -9 ------- Run | Scr Mat Mat Combat Hostiles Destroyed 24 | . 18 6 Guns 20 | . 17 3 AOE 4 | . 1 3 Classes Destroyed 8 | 2 5 1 Tunneler 2 | 1 1 . Hauler 1 | . 1 . Recycler 1 | 1 . . Operator 4 | . 3 1 Watcher 2 | . 2 . Swarmer 14 | . 10 4 Grunt 8 | . 8 . Sentry 2 | . . 2 Best Kill Streak 5 | 1 5 5 Combat Bots Only 5 | . 4 5 Max Kills in Single Turn 2 | 1 2 2 Gunslinging . | . . . Exploded 2 | . 1 2 Melee . | . . . Uniques/NPCs Destroyed . | . . . Combat | -11 -10 -9 -------- Run | Scr Mat Mat Damage Taken 1496 | . 1189 307 Core 1214 | . 962 252 Absorbed by Shields . | . . . Redirected to Core 889 | . 707 182 Core Remaining (%) 60 | 100 20 . Volleys Fired 126 | 10 104 12 Largest 2 | 2 2 2 Hottest 80 | 40 80 80 Shots Fired 252 | 20 208 24 Gun 252 | 20 208 24 Cannon . | . . . Launcher . | . . . Special . | . . . Kinetic 192 | 20 172 . Thermal . | . . . Explosive . | . . . Electromagnetic 60 | . 36 24 Robot Hit Streak 10 | 3 6 10 Robot Miss Streak 5 | 2 5 2 Penetration Max . | . . . Secondary Targets 6 | . 5 1 Max Gunslinging Chain 1 | . 1 1 Shots Hit Robots 142 | 12 112 18 Core Hits 53 | 5 39 9 Critical Hits 1 | . 1 . Critical Kills . | . . . Critical Parts Destroyed 1 | . 1 . Melee Attacks . | . . . Impact . | . . . Slashing . | . . . Piercing . | . . . Sneak Attacks . | . . . Combat Hostiles . | . . . Follow-up Attacks . | . . . Damage Inflicted 1908 | 107 1471 330 Guns 1674 | 107 1370 197 Cannons . | . . . Explosions 234 | . 101 133 Melee . | . . . Ramming . | . . . Kinetic 1215 | 107 1108 . Thermal 234 | . 101 133 Explosive . | . . . Electromagnetic 459 | . 262 197 Impact . | . . . Slashing . | . . . Piercing . | . . . Highest Corruption 2 | . 2 . Average Corruption 2 | . 2 . Corruption Purged . | . . . Effects 6 | . 6 . Message Errors 2 | . 2 . Heat Flow Errors 1 | . 1 . Data Loss (minor) 2 | . 2 . Targeting Errors 1 | . 1 . Overload Shots . | . . . Overflow Damage . | . . . Projectiles . | . . . Explosions . | . . . Melee . | . . . Knockbacks . | . . . Impact . | . . . Kinetic . | . . . Secondary . | . . . Self-Inflicted Damage 43 | . . 43 Shots 1 | . . 1 Rammed . | . . . Targets Rammed . | . . . Kicked . | . . . Crushed . | . . . Highest Temperature 271 | 20 271 76 Average Temperature 58 | 8 66 27 Received Heat Transfer 372 | . 300 72 Siege Activations . | . . . Robots Corrupted . | . . . Combat Hostiles . | . . . Parts Fried 5 | . 3 2 Impact Corruptions . | . . . Robots Melted . | . . . Combat Hostiles . | . . . Parts Melted 1 | . 1 . Heat Transferred 300 | . 100 200 Parts Sabotaged . | . . . Parts Stolen . | . . . Parts Stripped . | . . . Power Chain Reactions 4 | . 2 2 Missiles Intercepted . | . . . Alert | -11 -10 -9 ------- Run | Scr Mat Mat Peak Influence 391 | 10 391 391 Average Influence 191 | 5 219 224 Maximum Alert Level 1 | . 1 1 Low Security (%) 43 | 100 33 45 Level 1 56 | . 66 54 Level 2 . | . . . Level 3 . | . . . Level 4 . | . . . Level 5 . | . . . High Security . | . . . Max Security . | . . . Squads Dispatched 6 | . 5 1 Investigation . | . . . Extermination . | . . . Reinforcement 6 | . 5 1 Assault . | . . . Garrison . | . . . Intercept . | . . . Construction Impeded . | . . . Haulers Reinforced . | . . . Stealth | -11 -10 -9 --------- Run | Scr Mat Mat Distress Signals 4 | . 3 1 Communications Jammed . | . . . Distress Signals . | . . . Times Spotted 52 | . 41 11 Peak Tracking Total 9 | . 7 9 Tactical Retreats 1 | . 1 . Traps | -11 -10 -9 ------- Run | Scr Mat Mat Traps Triggered 2 | . 2 . Indirectly . | . . . Trap Hack Attempts . | . . . Triggered . | . . . Disarmed . | . . . Reprogrammed . | . . . Reused . | . . . Traps Extracted . | . . . Installed . | . . . Triggered . | . . . Machines | -11 -10 -9 ---------- Run | Scr Mat Mat Machines Disabled . | . . . Max in Single Turn . | . . . Machines Sabotaged . | . . . Garrisons Compromised . | . . . Overloaded Fab Kills . | . . . Fab Network Shutdowns . | . . . Hacking | -11 -10 -9 --------- Run | Scr Mat Mat Machines Accessed . | . . . Terminals . | . . . Fabricators . | . . . Repair Stations . | . . . Recycling Units . | . . . Scanalyzers . | . . . Garrison Access . | . . . Total Hacks . | . . . Successful . | . . . Failed . | . . . Catastrophic . | . . . Database Lockouts . | . . . Manual . | . . . Terminals . | . . . Fabricators . | . . . Repair Stations . | . . . Recycling Units . | . . . Scanalyzers . | . . . Garrison Access . | . . . Terminal Hacks . | . . . Fabricator Hacks . | . . . Repair Station Hacks . | . . . Recycling Unit Hacks . | . . . Scanalyzer . | . . . Garrison Access Hacks . | . . . Unauthorized Hacks . | . . . Terminals . | . . . Fabricators . | . . . Repair Stations . | . . . Recycling Units . | . . . Scanalyzers . | . . . Garrison Access . | . . . Data Cores Recovered 1 | . . 1 Used . | . . . Hacking Detections . | . . . Full Trace Events . | . . . Feedback Events . | . . . Feedback Blocked . | . . . Robot Schematics Acquired . | . . . Robots Built . | . . . Matter . | . . . Time . | . . . Total Robot Build Rating . | . . . Part Schematics Acquired . | . . . Parts Built . | . . . Matter . | . . . Time . | . . . Total Part Build Rating . | . . . Parts Repaired . | . . . Time . | . . . Parts Recycled . | . . . Recycled Matter . | . . . Retrieved Matter . | . . . Retrieved Components . | . . . Parts Scanalyzed . | . . . Part Schematics Acquired . | . . . Parts Damaged . | . . . Bothacking | -11 -10 -9 ------------ Run | Scr Mat Mat Used RIF Installer . | . . . Robots Hacked . | . . . Non-combat . | . . . Combat . | . . . Robot Hacks Applied . | . . . Relay Couplers Released . | . . . Robots Rewired . | . . . Allies Hacked . | . . . Hacks Repelled . | . . . Allies | -11 -10 -9 -------- Run | Scr Mat Mat Total Allies . | . . . Largest Group . | . . . Highest-Rated Group . | . . . Highest-Rated Ally . | . . . Total Orders . | . . . Ally Attacks . | . . . Total Damage . | . . . Kills . | . . . Allies Corrupted . | . . . Allies Melted . | . . . Intel | -11 -10 -9 ------- Run | Scr Mat Mat Robot Analysis Total . | . . . Derelict Logs Recovered . | . . . Drone Launches . | . . . Drone Recoveries . | . . . Exploration | -11 -10 -9 ------------- Run | Scr Mat Mat Turns Passed 846 | 114 624 108 Spaces Moved 847 | 67 652 128 Core 1 | 1 . . Treads . | . . . Legs . | . . . Wheels 131 | 66 65 . Hover . | . . . Flight 715 | . 587 128 Fastest Speed 37 | 50 37 37 Average Speed 45 | 88 42 37 Slowest Speed 90 | 90 90 37 Overloaded Moves . | . . . Propulsion Burnouts . | . . . Robots Hopped . | . . . Cave-ins Triggered . | . . . Exploration Rate (%) 40 | 5 98 17 Regions Visited 2 Branch Regions . Pre-discovered Areas . | . . . Known Exits Taken . | . . . Unknown Exits Taken 2 | 1 1 . Scrap Searched . | . . . Spaces Dug . | . . . Terrain Destroyed 20 | . 10 10 Melee . | . . . Projectile . | . . . AOE 20 | . 10 10 Actions | -11 -10 -9 --------- Run | Scr Mat Mat Total 1066 | 99 802 165 Wait 37 | 15 2 20 Move 845 | 66 651 128 Hop . | . . . Pick Up . | . . . Fast Attach 17 | 8 8 1 Attach . | . . . Detach . | . . . Swap 5 | . 5 . Drop 10 | . 10 . Fire 126 | 10 104 12 Melee . | . . . Ram . | . . . Kick . | . . . Crush . | . . . Escape Stasis . | . . . Rewire . | . . . Trap . | . . . Miscellaneous 26 | . 22 4 Route ------- -11/Scrapyard -10/Materials (discovered 4 exits: [*Mat x3] / [*Min]) -9/Materials (discovered 2 exits: [*Min] / [*Sto]) History --------- Turn | Location | Event 1 | -11/Scrapyard | Upgraded with Power slot (x1) 1 | -11/Scrapyard | Upgraded with Propulsion slot (x1) 1 | -11/Scrapyard | Upgraded with Utility slot (x1) 1 | -11/Scrapyard | Upgraded with Weapon slot (x1) 12 | -11/Scrapyard | Discovered new exit (range 15) 115 | -11/Scrapyard | Entered Materials 166 | -10/Materials | Discovered new exit (range 16) 224 | -10/Materials | Core integrity fell below 50% 317 | -10/Materials | Build established: Mutant 348 | -10/Materials | Discovered new exit (range 11) 395 | -10/Materials | Discovered new exit (range 15) 418 | -10/Materials | Reached level 2 421 | -10/Materials | Upgraded with Utility slot (x1) 612 | -10/Materials | Discovered new exit (range 14) 648 | -10/Materials | Build established: Scavenger-Mutant 739 | -10/Materials | Entered another Materials area 740 | -9/Materials | Core integrity fell below 50% 741 | -9/Materials | Reached level 3 741 | -9/Materials | Upgraded with Utility slot (x1) 755 | -9/Materials | Discovered new exit (range 10) 784 | -9/Materials | Core integrity fell below 20% 817 | -9/Materials | Discovered new exit (range 14) 845 | -9/Materials | Reached level 4 847 | -9/Materials | Destroyed by Y-45 Defender with Beam Rifle Last Messages --------------- 00796_ O-16 Technician destroyed. 00797_ K-01 Serf collects debris. 00800_ U-05 Engineer lays Concrete. 00802_ U-05 Engineer builds a Wall. 00803_ Acquired data core, extracted dynamic key. 00803_ Acquired 19 matter. 00813_ O-16 Technician: "IFF HANDSHAKE FAILED. SECURING TERMINAL." 00817_ EXIT=FOUND 00819_ ALERT: Hostiles spotted, dispatching reinforcements to Terminal M008. 00820_ Y-45 Defender destroyed. 00823_ S-10 Pest destroyed. 00828_ Used Protomatter to restore core integrity (+30, depleted) 00839_ S-10 Pest destroyed. 00839_ Switching to secondary target: Y-45 Defender. 00844_ S-10 Pest IFF system glitched. 00845_ Door malfunctions. 00845_ Chain reaction triggered in Lgt. Ion Engine. 00845_ Reached level 4. 00845_ S-10 Pest destroyed. Map ----- +----------------------------------------------------+ | | | | | ????????????????????##############?############## | | ?????????????#??##?## ###?### #??## | | ??????????#?????????# ####??# """ ##?## | | ??????????????#???#?# [! #?##### """ ###?# | | ?????????????????#### [! ##?##?# """ ##### | | ??????????????##??### [ #?##### # | | ????????????#?##????# #####?##+#""""# | | ??????????????????#?# ######## ! [ < | | ?????????#?#??#?#??## "T" ######## =#"# | | ????????????##?????######+############ " # | | ??????????#??#?????# #####+# | | ??????????????#????# ############# | | ??????#??????###?#?# ###########?# """ | | ???????????##???#######+#####+###########?#""""" | | ?????????###?#?## ##?####?#####""""" | | ????????????##?## #############""""" | | ????????????###?# ##?###?###### """ | | ?????????????#??# #########?### | | ?????????##????## #??################ | | ??????????#?#???# #?####?## ## | | ???????????##???####################### """ ## | | ???????????#?####?#??## # * # """ ## | | ????????? ?#?######### ![* %= # """ + | | ????????? Y =@<[ %= /*""" ## | | ????????????#???####### !!= % Y # """ ## | | ?????????+#??##???????# #;;;# #[= ## | | ?????????????#?#?##???###+####?### ## ## | | ????????? ????##?#??? ? ? ?# ## ## | | ??????????? ???????#?? ? ? ## ############ | | ???????????? #??####???? ?# ##?#?#??#??# | | ??????????? ??#?#??? ??? ? ? ## #???##?###?# | | ??????????????????#?#?? ? ? ? ?# ?######?## | | ???????????#????##???? ? ? ?# ?? ?? | | ???????????????##??##?? ?? ? ? ?# ? ? ??? | | ?????????????#?#??###??##???+#??# ? ?? | | ???????????????##? ? ???? ?#??#?# ###???#??# | | ???????????????##?? ????? ??????###########????## | | ?????????????????#????? ?? # ???#?????#????#?#??? | | ???????????????????? ?? ?? + ????#?????????? ???? | | ????????????????????????????? ??????????? ??????? | | ????????????????????????????????????????????????? | | ????????????????????????????????????????????????? | | ????????????????????????????????????????????????? | | ????????????????????????????????????????????????? | | ????????????????????????????????????????????????? | | ????????????????????????????????????????????????? | | ????????????????????????????????????????????????? | | ????????????????????????????????????????????????? | +----------------------------------------------------+ Best States ------------- Heat Dissipation 39 Energy Generation 19 Energy Capacity 310 Matter Stores 300 Matter Capacity 300 Sight Range 16 Robot Scan Range 2 Terrain Scan Range 16 Terrain Scan Density 260 Evasion (%) 62 Item Schematics ----------------- None Robot Schematics ------------------ None Fabricated ------------ Nothing Alien Tech Used ----------------- None Achievements -------------- None Challenges ------------ None RPGLIKE | -11 -10 -9 --------- Run | Scr Mat Mat Levels Raised 3 | . 1 2 XP Earned 7655 | 3000 2405 2250 XP Spent 5995 | 3000 1470 1525 Upgrades 17 | 8 6 3 Power Slot 1 | 1 . . Propulsion Slot 1 | 1 . . Utility Slot 3 | 1 1 1 Weapon Slot 1 | 1 . . Core Integrity 1 | . . 1 Mass Support 4 | 4 . . Sensor Range 1 | . 1 . Terrain Scan Density 2 | . 2 . Melee Accuracy 3 | . 2 1 Protomatter Created 259 | . 193 66 Integrity Restored 564 | . 486 78 Core 564 | . 486 78 Protomatter Decayed 34 | . 34 . Game ------ Seed LongswordMyomerShield Manual? 0 Play Time 00:15:00 Cumulative 71.9 hours Start 2019.12.20 @ 14:14:56 End 2019.12.20 @ 14:28:14 Sessions 1 Manual Loads 0 Difficulty Rogue Special Mode Winter2019/RPGLIKE Game No. 117 Rogue 117 Adventurer 0 Explorer 0 Win Type - Total 0 Types 0/0/0/0/0/0/0 Lore% 22 Gallery% 27 Achievement% 26 Wizard Run 0 Options --------- ASCII 0 Keyboard 0 Movement Mouse Keybinds 0 Fullscreen 1 Font 18/SmallcapsGlow Map View 76x50 Tactical HUD 1 Map Filters NONE Filters LOW_CONTRAST(13,24,33)|BRIGHTNESS(120)|SATURATION(80) Steam 1 RUN: e39663f5-3870-420c-a03c-5c2743ada947